[Event "XXXV Magistral de Leon 2022"]
[Site "Leon"]
[Date "2022.07.10"]
[Round "2.6"]
[White "Gelfand, Boris"]
[Black "Anand, Viswanathan"]
[Result "1-0"]
[ECO "D11"]
[WhiteElo "2668"]
[BlackElo "2756"]
[Annotator "TA"]
[PlyCount "90"]
[EventDate "2022.07.08"]
[EventType "k.o."]
[EventCountry "ESP"]
[SourceTitle "playchess.com"]
[Source "ChessBase"]
[SourceQuality "1"]
[TimeControl "300+3"]

{[%evp 9,90,32,25,27,28,27,32,32,36,33,30,10,52,20,28,18,48,0,0,-27,-19,-27,-27,-40,-19,-78,-77,-84,-58,-58,-25,-22,-23,-55,-23,-31,0,-30,0,0,0,-16,-22,-21,-14,-13,0,-7,0,0,0,0,0,0,0,0,0,0,0,0,0,0,0,0,0,0,0,0,0,0,0,0,0,0,0,0,0,0,0,0,0,0,29992]} 1. d4 {[%emt 0:02:04]} d5 {[%emt 0:02:03]} 2. Nf3 {[%emt 0:00:02]} Nf6 {[%emt 0:00:03]} 3. c4 {[%emt 0:00:01]} c6 {[%emt 0:00:03]} 4. e3 {[%emt 0:00:05]} a6 {[%emt 0:00:04]} 5. Nbd2 {[%emt 0:00:02]} Bf5 {[%emt 0:00:05]} 6. Nh4 {[%emt 0:00:04] D11: Slav Defence: 3 Nf3 sidelines and 3...Nf6 4 e3 Bg4.} e6 {[%emt 0:00:10]} 7. Qb3 {[%emt 0:00:03]} Ra7 {[%emt 0:00:03]} 8. Nxf5 {[%emt 0:00:15] White is slightly better.} exf5 {[%emt 0:00:03] [#]} 9. Bd3 $146 {[%emt 0:00:09]} ({Predecessor:} 9. g3 Be7 10. Bg2 O-O 11. O-O b5 12. cxd5 cxd5 13. a4 b4 14. Qd3 g6 15. Nb3 {0-1 (61) San Segundo Carrillo,P (2536)-Anand,V (2779) Villarrobledo 2006}) 9... g6 {[%emt 0:00:02]} 10. Qc2 {[%emt 0:00:06]} Bd6 {[%emt 0:00:04]} 11. b3 {[%emt 0:00:06]} (11. c5 $5 {[%cal Rc5d6]} Bc7 12. b4 $14) 11... O-O {[%emt 0:00:05]} 12. Bb2 {[%emt 0:00:02]} b5 {[%emt 0:00:04]} 13. c5 {[%emt 0:00:12]} (13. O-O $14 {was preferrable.}) 13... Bc7 $11 {[%emt 0:00:04]} 14. O-O-O {[%emt 0:00:05]} Nbd7 {[%emt 0:00:12]} 15. h3 {[%emt 0:00:09][%cal Og2g4]} Re8 {[%emt 0:00:04]} 16. Rde1 {[%emt 0:00:06]} Ba5 {[%emt 0:00:03]} 17. Bc3 {[%emt 0:00:04]} (17. Reg1 $11) 17... Bxc3 $17 {[%emt 0:00:06]} 18. Qxc3 {[%emt 0:00:02]} a5 {[%emt 0:00:05]} 19. Bc2 {[%emt 0:00:29]} Ne4 {[%emt 0:00:06]} 20. Nxe4 {[%emt 0:00:03]} dxe4 {[%emt 0:00:02]} 21. g4 $1 {[%emt 0:00:14]} fxg4 {[%emt 0:00:13]} (21... f4 $5) 22. hxg4 {[%emt 0:00:02]} Nf6 {[%emt 0:00:02][%cal Bd7f6,Bf6d5,Bd5f4][%mdl 32]} (22... b4 {seems wilder.} 23. Qc4 Qg5 24. Bd1 Nf6) 23. Bd1 {[%emt 0:00:06]} Nd5 {[%emt 0:00:03]} 24. Qd2 {[%emt 0:00:02] The position is equal.} Qg5 {[%emt 0:00:11]} 25. f4 {[%emt 0:00:13]} exf3 $1 {[%emt 0:00:20]} 26. Bxf3 {[%emt 0:00:02]} Rd7 {[%emt 0:00:22]} 27. e4 {[%emt 0:00:13]} Nf4 {[%emt 0:00:04]} 28. Kb1 $1 {[%emt 0:00:04]} Red8 {[%emt 0:00:13]} (28... Ne6 $5 29. Qh2 h6 $11) 29. d5 {[%emt 0:00:07]} Qe5 {[%emt 0:00:17]} 30. g5 {[%emt 0:00:25]} Qxg5 {[%emt 0:00:09]} 31. Qh2 {[%emt 0:00:27]} h5 {[%emt 0:00:07]} 32. Bxh5 {[%emt 0:00:18]} Nxh5 {[%emt 0:00:15]} (32... Qxh5 $2 33. Qxf4 Rxd5 34. Rxh5 $18) 33. Reg1 $1 {[%emt 0:00:02]} Qe3 {[%emt 0:00:14]} 34. Qxh5 $1 {[%csl Gh1][%cal Rh5h8] [#]} Qxe4+ {[%emt 0:00:02]} 35. Kc1 {[%emt 0:00:04][%csl Gh1][%cal Rh5h8]} Qe3+ {[%emt 0:00:12]} 36. Kc2 $1 {[%emt 0:00:02][%csl Gh1][%cal Rh5h8]} (36. Kb1 $2 Qd3+ 37. Kb2 Qd4+ 38. Kb1 Qg7 $19) 36... Qxc5+ (36... Kf8 $2 37. Qh8+ Ke7 38. Re1 Rxh8 39. Rxe3+ Kf6 40. Rxh8 $18) 37. Kb1 {[%csl Gh1][%cal Rh5h8]} Qd4 {[%emt 0:00:18] [#] Inhibits Qh8+. ...Qg7 is the strong threat.} 38. dxc6 $40 {[%emt 0:00:10][%cal Bd5c6,Bc6c7][%mdl 160] White is up to no good.} Qe4+ {[%emt 0:00:18]} 39. Ka1 {[%emt 0:00:03][%csl Gh1][%cal Rh5h8]} Qd4+ {[%emt 0:00:05]} 40. Kb1 {[%emt 0:00:02]} Rd6 {[%emt 0:00:02]} 41. c7 {[%emt 0:00:02] White threatens Rxg6+ and mate. Chess con chili.} ({Not} 41. Qxb5 $2 Qe4+ 42. Ka1 Rd2 $19) 41... Qe4+ 42. Ka1 {[%csl Gh1][%cal Rh5h8]} Qd4+ 43. Kb1 {Intending Rxg6+ and mate.} Qd3+ 44. Ka1 {[%csl Gh1][%cal Rh5h8]} Qc3+ 45. Kb1 {White wants to mate with Rxg6+.} Rd2 $2 {[%mdl 8192] Weighted Error Value: White=0.08 (flawless) /Black=0.07 (flawless)} (45... Qd3+ $11 46. Kb2 Qd4+ 47. Kb1) 1-0